Cogmind - Beta 17 @@@ ROGUE MODE // 2026.06.28 @ 20:12:14 Player: NeoBioHazard Result: Destroyed by S-10 Pest with Light Assault Rifle Performance ------------- Evolutions (1) 500 Regions Visited (2) 400 Robots Destroyed (13) 65 Value Destroyed (465) 465 Prototype IDs (5) 100 Alien Tech Used (0) 0 Bonus (0) 0 TOTAL SCORE: 1530 Bonus ------- None Cogmind --------- Core Integrity 0/400 Matter 203/300 Energy 265/265 System Corruption 5% Temperature Hot (205) Movement Core (200) Ox3 Location -9/Materials Parts ------- > --- POWER (1) -------- Improved Ion Engine > --- PROPULSION (4) --- (None) > --- UTILITY (2) ------ (None) > --- WEAPON (2) ------- Small Laser Particle Gun > --- INVENTORY (5) ---- Ion Engine Small Storage Unit Light Assault Rifle Mining Claw Peak State ------------ > --- POWER ------------ Light Ion Engine > --- PROPULSION ------- Wheel Compact Wheel > --- UTILITY ---------- Cooling System Light Armor Plating > --- WEAPON ----------- EM Shotgun Medium Laser > --- INVENTORY -------- Ion Engine Small Storage Unit Light Assault Rifle Mining Claw [Rating: 9] Favorites ----------- Power Light Ion Engine Engine Light Ion Engine Propulsion Compact Wheel Treads Light Treads Leg Aluminum Leg Wheel Compact Wheel Utility Light Armor Plating Device Cooling System Protection Light Armor Plating Weapon Medium Laser Energy Gun Medium Laser Ballistic Gun Heavy Assault Rifle Build | -11 -10 -9 ------- Run | Yrd Mat Mat Slots Evolved 2 | . . 2 Power . | . . . Propulsion 2 | . . 2 Utility . | . . . Weapon . | . . . Parts Attached 18 | 6 1 11 Power 2 | 1 . 1 Engine 2 | 1 . 1 Core . | . . . Reactor . | . . . Propulsion 4 | 2 . 2 Treads 1 | . . 1 Leg 1 | . . 1 Wheel 2 | 2 . . Hover . | . . . Flight . | . . . Utility 4 | . 1 3 Device 2 | . . 2 Storage . | . . . Processor . | . . . Hackware . | . . . Protection 2 | . 1 1 Artifact . | . . . Weapon 8 | 3 . 5 Energy Gun 5 | 2 . 3 Energy Cannon . | . . . Ballistic Gun 3 | 1 . 2 Ballistic Cannon . | . . . Launcher . | . . . Special Weapon . | . . . Impact Weapon . | . . . Slashing Weapon . | . . . Piercing Weapon . | . . . Special Melee Weapon . | . . . Unidentified Prototypes 1 | . . 1 Corrupted Parts 1 | . . 1 System Corruption 3 | . . 3 Parts Lost 12 | . . 12 Power 1 | . . 1 Propulsion 4 | . . 4 Utility 3 | . . 3 Weapon 4 | . . 4 Highest Loss Streak 9 | . . 9 To Critical Strikes . | . . . Average Backups 3 | 1 3 4 Power . | . 1 1 Propulsion . | . . . Utility 1 | . 1 1 Weapon 1 | . 1 2 Tool/Special . | . . . Unused Backups 3 | . . 3 Power 1 | . . 1 Propulsion . | . . . Utility 1 | . . 1 Weapon 1 | . . 1 Tool/Special . | . . . Average Slot Usage (%) 65 | . 76 59 Engine 8 | . 14 5 Leg 2 | . . 4 Wheel 20 | . 28 15 Device 5 | . . 8 Protection 5 | . 5 5 Energy Gun 20 | . 28 16 Ballistic Gun 1 | . . 3 Peak Build Rating 9 | 5 6 9 Average Rating 6 | 4 5 7 On Entrance 3 | . 5 6 Avg Prop Armor Cover (%) 9 | . . 9 Naked Turns 3 | . . 3 Heaviest Build 13 | 7 10 13 Greatest Support 26 | 26 26 26 Greatest Overweight (x) 3 | . . 3 Average Overweight (x) . | . . . Largest Inventory Capacity 5 | 5 5 5 Average Capacity 5 | 5 5 5 Most Carried 5 | 3 4 5 Average Carried 3 | 1 3 4 Final Capacity 5 | 5 5 5 Final Carried 4 | 3 4 4 Class Distribution -------------------- 91% | Mutant 8% | Scavenger-Mutant Dominant Class ---------------- Mutant | -10/Materials Mutant | -9/Materials Resources | -11 -10 -9 ----------- Run | Yrd Mat Mat Matter Collected 444 | 207 131 106 Remotely . | . . . Salvage Created 567 | . 78 489 Parts 24 | . 2 22 Haulers Intercepted . | . . . Recyclers Shooed . | . . . Parts Field Recycled . | . . . Retrieved Matter . | . . . Parts Self-Destructed . | . . . Prevented . | . . . Parts Restored . | . . . Kills | -11 -10 -9 ------- Run | Yrd Mat Mat Combat Hostiles Destroyed 13 | . 2 11 Guns 13 | . 2 11 Classes Destroyed 4 | . 1 3 Swarmer 1 | . . 1 Grunt 9 | . 2 7 Brawler 1 | . . 1 Sentry 2 | . . 2 Best Kill Streak 6 | . 1 6 Combat Bots Only 6 | . 1 6 Max Kills in Single Turn 1 | . 1 1 Gunslinging . | . . . Exploded . | . . . Melee . | . . . Uniques/NPCs Destroyed . | . . . Combat | -11 -10 -9 -------- Run | Yrd Mat Mat Hostile Shots Fired 158 | . 16 142 Missed 38 | . 1 37 Hits 120 | . 15 105 Melee 4 | . . 4 Projectile 116 | . 15 101 Critical Strikes 1 | . . 1 Damage Taken 1398 | . 165 1233 Core 441 | . 33 408 Absorbed by Shields . | . . . Core Remaining (%) 93 | 100 86 . Volleys Fired 50 | . 11 39 Largest 2 | . 2 2 Hottest 105 | . 100 105 Shots Fired 88 | . 22 66 Gun 88 | . 22 66 Cannon . | . . . Launcher . | . . . Special . | . . . Kinetic 20 | . . 20 Thermal 56 | . 22 34 Explosive . | . . . Electromagnetic 12 | . . 12 Robot Hit Streak 12 | . 4 12 Robot Miss Streak 6 | . 2 6 Penetration Max . | . . . Secondary Targets 1 | . . 1 Max Gunslinging Chain 1 | . . 1 Shots Hit Robots 54 | . 12 42 Core Hits 25 | . 4 21 Critical Kills . | . . . Critical Parts Destroyed . | . . . Critical Strikes 1 | . . 1 Burn 1 | . . 1 Melee Attacks . | . . . Impact . | . . . Slashing . | . . . Piercing . | . . . Sneak Attacks . | . . . Combat Hostiles . | . . . Follow-up Attacks . | . . . Damage Inflicted 818 | . 153 665 Guns 817 | . 153 664 Cannons . | . . . Explosions . | . . . Melee . | . . . Ramming 1 | . . 1 Kinetic 221 | . . 221 Thermal 438 | . 153 285 Explosive . | . . . Electromagnetic 158 | . . 158 Impact . | . . . Slashing . | . . . Piercing . | . . . Highest Corruption 5 | . . 5 Average Corruption 3 | . . 3 Corruption Purged . | . . . Corruption Blocked . | . . . Effects 5 | . . 5 Message Errors 1 | . . 1 Parts Rejected 1 | . . 1 Data Loss (minor) 1 | . . 1 Misfires 2 | . . 2 Overload Shots . | . . . Overflow Damage . | . . . Projectiles . | . . . Explosions . | . . . Melee . | . . . Knockbacks . | . . . Impact . | . . . Kinetic . | . . . Secondary . | . . . Self-Inflicted Damage . | . . . Shots . | . . . Rammed 1 | . . 1 Targets Rammed 1 | . . 1 Kicked . | . . . Crushed . | . . . Highest Temperature 581 | . 581 205 Average Temperature 197 | . 344 52 Received Heat Transfer 627 | . 90 537 Effects 5 | . 5 . Shutdowns 2 | . 2 . Matter Decay 2 | . 2 . Short Circuit 1 | . 1 . Siege Activations . | . . . Martial Activations . | . . . Shielding Activations . | . . . Robots Disrupted . | . . . Combat Hostiles . | . . . Robots Corrupted . | . . . Combat Hostiles . | . . . Parts Fried . | . . . Impact Corruptions . | . . . Robots Melted . | . . . Combat Hostiles . | . . . Parts Melted . | . . . Heat Transferred 1320 | . 444 876 Parts Sabotaged . | . . . Parts Stolen . | . . . Parts Stripped . | . . . Power Chain Reactions . | . . . Alert | -11 -10 -9 ------- Run | Yrd Mat Mat Maximum Alert Level . | . . . Low Security (%) 100 | 100 100 100 Level 1 . | . . . Level 2 . | . . . Level 3 . | . . . Level 4 . | . . . Level 5 . | . . . High Security . | . . . Max Security . | . . . Peak Influence 125 | . 40 125 Initial 16 | . . 16 Average 26 | . 10 41 Influence Increases 424 | . 77 347 Destroy 0b10 Robot/C 260 | . 40 220 Destroy Leader 70 | . 10 60 Successful Hack 49 | . 27 22 Disable Machine 15 | . . 15 Lose Combat Pursuer 30 | . . 30 Influence Decreases 319 | . 37 282 Entered New Map 24 | . . 24 Time Decay 175 | . 37 138 Lost Part 110 | . . 110 Purge Threat 10 | . . 10 Squads Dispatched 4 | . 1 3 Investigation 2 | . 1 1 Extermination . | . . . Reinforcement 2 | . . 2 Assault . | . . . Garrison . | . . . Intercept . | . . . Searches Triggered . | . . . Construction Impeded . | . . . Haulers Reinforced . | . . . Active Scanning Responses . | . . . Cargo Convoy Interrupts . | . . . Stealth | -11 -10 -9 --------- Run | Yrd Mat Mat Distress Signals 2 | . . 2 Communications Jammed . | . . . Distress Signals . | . . . Times Spotted 27 | . 7 20 Peak Tracking Total 11 | . 7 11 Tactical Retreats 1 | . . 1 Traps | -11 -10 -9 ------- Run | Yrd Mat Mat Traps Triggered 1 | . 1 . Indirectly . | . . . Trap Hack Attempts . | . . . Triggered . | . . . Disarmed . | . . . Reprogrammed . | . . . Reused . | . . . Traps Extracted . | . . . Installed . | . . . Triggered . | . . . Machines | -11 -10 -9 ---------- Run | Yrd Mat Mat Machines Disabled 1 | . . 1 Max in Single Turn 1 | . . 1 Machines Repaired . | . . . Machines Dismantled . | . . . Machines Sabotaged . | . . . Overloaded Fab Kills . | . . . Hacking | -11 -10 -9 --------- Run | Yrd Mat Mat Machines Accessed 5 | . 3 2 Terminals 5 | . 3 2 Fabricators . | . . . Repair Stations . | . . . Recycling Units . | . . . Scanalyzers . | . . . Garrison Access . | . . . Total Hacks 21 | . 11 10 Successful 12 | . 7 5 Failed 9 | . 4 5 Catastrophic 1 | . . 1 Database Lockouts . | . . . Manual 15 | . 5 10 Terminals 21 | . 11 10 Fabricators . | . . . Repair Stations . | . . . Recycling Units . | . . . Scanalyzers . | . . . Garrison Access . | . . . Terminal Hacks 12 | . 7 5 Prototype ID Bank 2 | . 2 . Level Access Points 1 | . 1 . Alert Level 1 | . 1 . Unreport Threat 3 | . 1 2 Locate Traps 3 | . 1 2 Zone Layout 2 | . 1 1 Fabricator Hacks . | . . . Repair Station Hacks . | . . . Recycling Unit Hacks . | . . . Scanalyzer . | . . . Garrison Access Hacks . | . . . Unauthorized Hacks . | . . . Terminals . | . . . Fabricators . | . . . Repair Stations . | . . . Recycling Units . | . . . Scanalyzers . | . . . Garrison Access . | . . . Data Cores Recovered . | . . . Used . | . . . Hacking Detections 5 | . 3 2 Full Trace Events 1 | . . 1 Feedback Events . | . . . Feedback Blocked . | . . . Robot Schematics Acquired . | . . . Robots Built . | . . . Authchips . | . . . Time . | . . . Total Robot Build Rating . | . . . Part Schematics Acquired . | . . . Parts Built . | . . . Authchips . | . . . Time . | . . . Total Part Build Rating . | . . . Part Studies Acquired . | . . . Parts Repaired . | . . . Time . | . . . Parts Recycled . | . . . Recycled Matter . | . . . Retrieved Matter . | . . . Retrieved Components . | . . . Parts Scanalyzed . | . . . Part Schematics Acquired . | . . . Parts Damaged . | . . . Bothacking | -11 -10 -9 ------------ Run | Yrd Mat Mat Used RIF Installer . | . . . Robots Hacked . | . . . Non-combat . | . . . Combat . | . . . Robot Hacks Applied . | . . . Relay Couplers Released . | . . . Fabnet Peak Effective % . | . . . Robots Rewired . | . . . Allies Hacked . | . . . Hacks Repelled . | . . . Allies | -11 -10 -9 -------- Run | Yrd Mat Mat Total Allies . | . . . Largest Group . | . . . Highest-Rated Group . | . . . Highest-Rated Ally . | . . . Total Orders . | . . . Ally Attacks . | . . . Total Damage . | . . . Kills . | . . . Allies Corrupted . | . . . Allies Melted . | . . . Intel | -11 -10 -9 ------- Run | Yrd Mat Mat Active Infowar (turns) . | . . . Robot Analysis Total . | . . . Derelict Logs Recovered . | . . . Drone Launches . | . . . Drone Recoveries . | . . . Exploration | -11 -10 -9 ------------- Run | Yrd Mat Mat Turns Passed 561 | 62 179 320 Spaces Moved 372 | 58 149 165 Core 18 | 4 . 14 Treads 1 | . . 1 Legs . | . . . Wheels 353 | 54 149 150 Hover . | . . . Flight . | . . . Fastest Speed 50 | 50 90 50 Average Speed 91 | 87 90 93 Slowest Speed 200 | 90 90 200 Overloaded Moves . | . . . Propulsion Burnouts . | . . . Robots Hopped . | . . . Potential Cave-ins . | . . . Cave-ins Triggered . | . . . Exploration Rate (%) 15 | 4 32 11 Regions Visited 2 Branch Regions . Pre-discovered Areas . | . . . Known Exits Taken 1 | . 1 . Unknown Exits Taken 1 | 1 . . Scrap Searched . | . . . Spaces Dug . | . . . Terrain Destroyed . | . . . Melee . | . . . Projectile . | . . . AOE . | . . . Terrain Rammed . | . . . Walls Destroyed . | . . . Machines Disabled . | . . . Actions | -11 -10 -9 --------- Run | Yrd Mat Mat Total 497 | 66 171 260 Wait 46 | . 10 36 Move 370 | 57 148 165 Hop . | . . . Pick Up 4 | 3 1 . Fast Attach 17 | 5 1 11 Attach . | . . . Detach 1 | . . 1 Swap 6 | 1 . 5 Drop 2 | . . 2 Fire 50 | . 11 39 Melee . | . . . Ram 1 | . . 1 Kick . | . . . Crush . | . . . Escape Stasis . | . . . Rewire . | . . . Trap . | . . . Miscellaneous . | . . . Route ------- -11/Scrapyard -10/Materials (discovered 4 exits: *Mat x3 / [*Min]) -9/Materials History --------- Turn | Location | Event 2 | -11/Scrapyard | Met Revision 17 15 | -11/Scrapyard | Discovered new exit (range 16) 63 | -11/Scrapyard | Entered Materials 89 | -10/Materials | Identified exit to Materials 108 | -10/Materials | Discovered new exit (range 12) 242 | -10/Materials | Entered another Materials area 242 | -9/Materials | Evolved 2 slots: Propulsion x2 311 | -9/Materials | Build established: Mutant 506 | -9/Materials | Core integrity fell below 50% 524 | -9/Materials | Core integrity fell below 20% 555 | -9/Materials | Lost 9 parts (4n2u3w) 562 | -9/Materials | Destroyed by S-10 Pest with Light Assault Rifle Last Messages --------------- 00503_ G-34 Mercenary destroyed. 00507_ Lgt. Treads destroyed. 00509_ Hvy. Assault Rifle destroyed. 00509_ G-34 Mercenary destroyed. 00511_ System corrupted: Component data lost. 00513_ Aluminum Leg destroyed. 00515_ Hvy. Assault Rifle destroyed. 00516_ Acquired Med. Laser. 00518_ G-47 Trooper destroyed. 00524_ Med. Laser destroyed. 00526_ Acquired Imp. Ion Engine. 00538_ Acquired Particle Gun. 00539_ K-01 Serf collects debris. 00540_ G-34 Mercenary suffers critical hit (Burn). 00540_ G-34 Mercenary destroyed. 00542_ K-01 Serf collects debris. 00552_ Acquired Sml. Laser. 00554_ K-01 Serf collects debris. 00560_ S-10 Pest destroyed. 00560_ K-01 Serf collects debris. Map ----- +----------------------------------------------------+ | ????????????# # ###########???????? | | ????????????# # #?????????????????? | | ????????????# ! # #####?????????????? | | ????????????##+######## # ?????????????? | | ?????????????# #??????# # "?????????????? | | ?????????????#*#??????# # "?????????????? | | ?????????????#+######## # "?????????????? | | ?????????????#% # # ?????????????? | | ?????????????#[ # # "?????????????? | | ?????????????# """ # # "?????????????? | | ?????????????#""""" # # "?????????????? | | ?????????????#""""" + + ?????????????? | | ?????????????#"""""% # #####?????????????? | | ?????????????# """ #?????????????????????? | | ?????????????# #?????????????????????? | | ?????????????# #?????????????????????? | | ?????????????###+######?????????????????????? | | ???????????????# #??????????????????????????? | | ???????????????# #??????????????????????????? | | ???????????????# #??????????????????????????? | | ???????????????# #??????????????????????????? | | ???????????????# #??????????????????????????? | | ??????????????##/############???????????????? | | ??????????????# =g #???????????????? | | ??????????????# "" ! """ #???????????????? | | ??????????????# """=@!! "" #???????????????? | | ??????????????# "*=*!! """ ##??????????????? | | ??????????????# %%*%[!! k %#??????????????? | | ??????????????#! !%=%%* ##??????????????? | | ??????????????#######s#######???????????????? | | ???????????????????+ %=#????????????????????? | | ???????????????????# s #????????????????????? | | ???????????????????# #????????????????????? | | ???????????????????# +????????????????????? | | ???????????????????# a#????????????????????? | | ???????????????????# k#????????????????????? | | ???????????????????# #????????????????????? | | ??????????????????? #????????????????????? | | ??????????????????? #????????????????????? | | ??????????????????? #????????????????????? | | ??????????????????? #????????????????????? | | ??????????????????? #????????????????????? | | ??????????????????" ?????????????????????? | | ??????????????????" ?????????????????????? | | ??????????????????? ?????????????????????? | | ????????????????????????????????????????????? | | ????????????????????????????????????????????? | | ????????????????????????????????????????????? | | ????????????????????????????????????????????? | | ????????????????????????????????????????????? | +----------------------------------------------------+ Best States ------------- Heat Dissipation 50 Energy Generation 12 Energy Capacity 265 Matter Stores 300 Matter Capacity 300 Sight Range 16 Terrain Scan Density 10 Armor Coverage 150 Evasion (%) 42 Recoil Reduction 1 Item Schematics ----------------- None Robot Schematics ------------------ None Fabricated ------------ Nothing Repaired ---------- Nothing Studied --------- None Alien Tech Used ----------------- None Achievements -------------- None Challenges ------------ None Game ------ Seed BackupBeamPrototype Manual? 0 Play Time 00:08:23 Cumulative 241.5 hours Start 2026.06.28 @ 20:06:42 End 2026.06.28 @ 20:12:14 Sessions 1 Manual Loads 0 Difficulty Rogue Special Mode None Game No. 385 Rogue 222 Adventurer 15 Explorer 148 Win Type - Total 27 Types 26/0/0/1/0/0/0/0/0/0 Lore% 65 Gallery% 64 Achievement% 57 Wizard Run 0 Options --------- Layout 0 ASCII 0 Keyboard 1 Movement Numpad Keybinds 0 Fullscreen 2 Font 18/SmallcapsGlow Map View 76x50 Zoom Use 0% Tactical HUD 1 Map Filters NONE Filters NONE Steam 1 RUN: 7804ed44-6f43-4089-8686-e73339487d06